[Event "Szansa Chess Open 2022"]
[Site "Warsaw"]
[Date "2022.09.18"]
[Round "9.7"]
[White "Lewtak, Damian"]
[Black "Padalka, Artem"]
[Result "1-0"]
[ECO "A05"]
[WhiteElo "2386"]
[BlackElo "2184"]
[Annotator "ChessBase"]
[PlyCount "113"]
[EventDate "2022.09.17"]
[EventCountry "POL"]
[SourceTitle "playchess.com"]
[Source "ChessBase"]
[SourceQuality "1"]
[TimeControl "900+10"]

1. Nf3 {[%emt 0:00:02]} Nf6 {[%emt 0:00:05]} 2. b3 {[%emt 0:00:02]} g6 {[%emt 0:00:07]} 3. Bb2 {[%emt 0:00:02]} Bg7 {[%emt 0:00:02]} 4. g3 {[%emt 0:00:02]} c5 {[%emt 0:00:37]} 5. Bg2 {[%emt 0:00:06]} O-O {[%emt 0:00:21]} 6. O-O {[%emt 0:00:04]} d5 {[%emt 0:01:48]} 7. e3 {[%emt 0:00:07]} Nc6 {[%emt 0:00:22]} 8. Ne5 {[%emt 0:00:05]} Qd6 {[%emt 0:01:42]} 9. Nxc6 bxc6 {[%emt 0:00:06]} 10. d3 {[%emt 0:00:15]} e5 {[%emt 0:00:56]} 11. Nd2 {[%emt 0:00:06]} h5 {[%emt 0:00:43]} 12. c4 {[%emt 0:00:36]} h4 {[%emt 0:04:05]} 13. Rc1 {[%emt 0:00:46]} hxg3 {[%emt 0:00:13]} 14. hxg3 {[%emt 0:00:05]} d4 {[%emt 0:01:11]} 15. exd4 {[%emt 0:00:15]} exd4 {[%emt 0:00:08]} 16. Re1 {[%emt 0:00:42]} Bh6 {[%emt 0:00:38]} 17. Rc2 {[%emt 0:00:02]} Bg4 {[%emt 0:00:09]} 18. Bf3 {[%emt 0:00:34]} Bxf3 {[%emt 0:01:51]} 19. Qxf3 {[%emt 0:00:02]} Rfe8 {[%emt 0:00:02]} 20. Ne4 {[%emt 0:00:15]} Nxe4 {[%emt 0:00:01]} 21. Rxe4 {[%emt 0:00:02]} f5 {[%emt 0:00:31]} 22. Rxe8+ {[%emt 0:00:13]} Rxe8 {[%emt 0:00:01]} 23. Kg2 {[%emt 0:00:39]} Qe6 {[%emt 0:00:36]} 24. Bc1 {[%emt 0:00:36]} Bg7 {[%emt 0:00:52]} 25. Bg5 {[%emt 0:00:45]} Kf7 {[%emt 0:00:28]} 26. Rb2 {[%emt 0:00:21]} Kg8 {[%emt 0:00:51]} 27. b4 {[%emt 0:00:26]} cxb4 {[%emt 0:00:07]} 28. Rxb4 {[%emt 0:00:10]} Qd7 {[%emt 0:00:39]} 29. Rb1 {[%emt 0:00:12]} Qc7 {[%emt 0:00:36]} 30. Bf4 {[%emt 0:00:13]} Qd7 {[%emt 0:00:01]} 31. Rb3 {[%emt 0:00:22]} Bf6 {[%emt 0:00:06]} 32. Bd2 {[%emt 0:00:55]} Bg7 {[%emt 0:00:04]} 33. Bg5 {[%emt 0:00:11]} Qc7 {[%emt 0:00:03]} 34. Qd1 {[%emt 0:00:05]} Qd7 {[%emt 0:00:06]} 35. Qb1 {[%emt 0:00:37]} c5 {[%emt 0:00:13]} 36. Qd1 {[%emt 0:00:03]} Qa4 {[%emt 0:00:32]} 37. Qf3 {[%emt 0:00:48]} Qxa2 {[%emt 0:00:04]} 38. Rb7 {[%emt 0:01:15]} Qa6 {[%emt 0:00:05]} 39. Qd5+ {[%emt 0:00:29]} Qe6 {[%emt 0:00:00]} 40. Qxc5 Rc8 {[%emt 0:00:32]} 41. Qxa7 {[%emt 0:01:03]} Qc6+ {[%emt 0:00:06]} 42. Kh2 {[%emt 0:00:20]} Be5 {[%emt 0:00:17]} 43. Rb6 {[%emt 0:01:22]} Qc7 {[%emt 0:00:11]} 44. Qxc7 {[%emt 0:00:53]} Rxc7 {[%emt 0:00:02]} 45. Rxg6+ {[%emt 0:00:33]} Kf7 {[%emt 0:00:05]} 46. Rb6 {[%emt 0:00:41]} Ra7 {[%emt 0:00:01]} 47. f4 {[%emt 0:00:30]} Ra2+ {[%emt 0:00:03]} 48. Kh3 {[%emt 0:00:04]} Bg7 {[%emt 0:00:06]} 49. g4 {[%emt 0:00:10]} Ra3 {[%emt 0:00:38]} 50. gxf5 {[%emt 0:00:03]} Rxd3+ {[%emt 0:00:01]} 51. Kg4 {[%emt 0:00:03]} Rc3 {[%emt 0:00:01]} 52. Rb7+ {[%emt 0:00:08]} Kg8 {[%emt 0:00:01]} 53. f6 {[%emt 0:00:37]} Bf8 {[%emt 0:00:00]} 54. Kf5 {[%emt 0:00:23]} Rxc4 {[%emt 0:00:19]} 55. Kg6 {[%emt 0:00:06]} Rc6 {[%emt 0:00:36]} 56. Rd7 {[%emt 0:00:19]} Bg7 {[%emt 0:00:18]} 57. Rxg7+ {[%emt 0:00:06]} 1-0

[Event "Szansa Chess Open 2022"]
[Site "Warsaw"]
[Date "2022.09.18"]
[Round "9.8"]
[White "Zochowski, Kacper"]
[Black "Kulesza, Andrzej"]
[Result "1/2-1/2"]
[ECO "A05"]
[WhiteElo "2257"]
[BlackElo "2014"]
[Annotator "ChessBase"]
[PlyCount "138"]
[EventDate "2022.09.17"]
[EventCountry "POL"]
[SourceTitle "playchess.com"]
[Source "ChessBase"]
[SourceQuality "1"]
[TimeControl "900+10"]

1. Nf3 {[%emt 0:00:01]} Nf6 {[%emt 0:00:03]} 2. c4 {[%emt 0:00:02]} e6 {[%emt 0:00:04]} 3. g3 {[%emt 0:00:01]} b6 {[%emt 0:00:02]} 4. Bg2 {[%emt 0:00:01]} Bb7 {[%emt 0:00:01]} 5. O-O {[%emt 0:00:02]} Be7 {[%emt 0:00:02]} 6. b3 {[%emt 0:00:01]} O-O {[%emt 0:00:04]} 7. Bb2 {[%emt 0:00:02]} d5 {[%emt 0:00:02]} 8. e3 {[%emt 0:00:04]} c5 {[%emt 0:00:10]} 9. Nc3 {[%emt 0:00:09]} Nbd7 {[%emt 0:00:12]} 10. Qe2 {[%emt 0:00:21]} Rc8 {[%emt 0:00:12]} 11. Rfd1 {[%emt 0:00:25]} Qc7 {[%emt 0:00:12]} 12. cxd5 {[%emt 0:01:30]} Nxd5 {[%emt 0:00:06]} 13. Nxd5 {[%emt 0:00:02]} Bxd5 {[%emt 0:00:08]} 14. e4 {[%emt 0:00:01]} Bb7 {[%emt 0:00:08]} 15. d4 {[%emt 0:00:01]} cxd4 {[%emt 0:00:33]} 16. Nxd4 {[%emt 0:00:03]} Nf6 {[%emt 0:00:10]} 17. Nb5 {[%emt 0:09:29]} Qb8 {[%emt 0:00:04]} 18. Bxf6 {[%emt 0:00:13]} Bxf6 {[%emt 0:00:05]} 19. e5 {[%emt 0:00:11]} Bxg2 {[%emt 0:01:29]} 20. exf6 {[%emt 0:00:46]} Qa8 {[%emt 0:00:01]} 21. Qg4 {[%emt 0:03:38]} g6 {[%emt 0:00:03]} 22. Rd3 {[%emt 0:00:00]} Rc5 {[%emt 0:00:51]} 23. Nd6 {[%emt 0:01:16]} Rd5 {[%emt 0:00:43]} 24. Qf4 {[%emt 0:00:09]} g5 {[%emt 0:00:16]} 25. Qd2 {[%emt 0:00:07]} h6 {[%emt 0:00:15]} 26. Rxd5 {[%emt 0:00:24]} Bxd5 {[%emt 0:00:02]} 27. h4 {[%emt 0:00:07]} Qd8 {[%emt 0:00:16]} 28. Nf5 {[%emt 0:00:27]} Qxf6 {[%emt 0:00:10]} 29. Nd4 {[%emt 0:00:11]} gxh4 {[%emt 0:00:16]} 30. Qe3 {[%emt 0:00:00]} Kh8 {[%emt 0:00:13]} 31. Kh2 {[%emt 0:00:17]} Rg8 {[%emt 0:00:17]} 32. Rg1 {[%emt 0:00:01]} Rg4 {[%emt 0:00:40]} 33. Ne2 {[%emt 0:00:20]} Re4 34. Qc3 {[%emt 0:00:00]} e5 {[%emt 0:00:45]} 35. Nf4 {[%emt 0:00:21]} Rxf4 {[%emt 0:00:50]} 36. gxf4 {[%emt 0:00:01]} Qxf4+ {[%emt 0:00:02]} 37. Kh3 {[%emt 0:00:02]} Be6+ {[%emt 0:00:02]} 38. Kg2 {[%emt 0:00:01]} Kh7 {[%emt 0:00:15]} 39. Kf1 {[%emt 0:00:38]} Bf5 {[%emt 0:00:38]} 40. Qe3 {[%emt 0:00:13]} Qxe3 41. fxe3 {[%emt 0:00:01]} h3 {[%emt 0:00:06]} 42. Kf2 {[%emt 0:00:06]} Be4 {[%emt 0:01:13]} 43. Kg3 {[%emt 0:00:10]} Bg2 {[%emt 0:00:02]} 44. Rc1 {[%emt 0:00:05]} Kg6 {[%emt 0:00:07]} 45. Rc7 {[%emt 0:00:09]} a5 {[%emt 0:00:02]} 46. Rd7 {[%emt 0:00:04]} Kf5 {[%emt 0:00:25]} 47. Rxf7+ {[%emt 0:00:03]} Ke4 {[%emt 0:00:01]} 48. Re7 {[%emt 0:00:01]} h5 {[%emt 0:00:03]} 49. a3 {[%emt 0:00:16]} h4+ {[%emt 0:00:07]} 50. Kh2 {[%emt 0:00:01]} b5 {[%emt 0:00:10]} 51. a4 {[%emt 0:00:35]} bxa4 {[%emt 0:00:13]} 52. bxa4 {[%emt 0:00:00]} Bf1 {[%emt 0:00:03]} 53. Re8 {[%emt 0:00:24]} Bg2 {[%emt 0:00:03]} 54. Re7 {[%emt 0:00:00]} Bf3 {[%emt 0:00:43]} 55. Kxh3 {[%emt 0:00:17]} Bd1 {[%emt 0:00:01]} 56. Ra7 {[%emt 0:00:05]} Bxa4 {[%emt 0:00:04]} 57. Rxa5 {[%emt 0:00:01]} Bc2 {[%emt 0:00:24]} 58. Kxh4 {[%emt 0:00:25]} Kxe3 {[%emt 0:00:02]} 59. Rxe5+ {[%emt 0:00:02]} Kd2 {[%emt 0:00:01]} 60. Kg3 {[%emt 0:00:08]} Kc1 {[%emt 0:00:02]} 61. Kf2 {[%emt 0:00:01]} Kb1 {[%emt 0:00:01]} 62. Ke2 {[%emt 0:00:01]} Ka1 {[%emt 0:00:01]} 63. Kd2 {[%emt 0:00:01]} Bb1 {[%emt 0:00:02]} 64. Kc3 {[%emt 0:00:01]} Ba2 {[%emt 0:00:06]} 65. Kc2 {[%emt 0:00:04]} Bb1+ {[%emt 0:00:02]} 66. Kc1 {[%emt 0:00:00]} Ba2 {[%emt 0:00:01]} 67. Re1 {[%emt 0:00:01]} Bb1 {[%emt 0:00:11]} 68. Rg1 {[%emt 0:00:02]} Be4 {[%emt 0:00:10]} 69. Rg4 {[%emt 0:00:03]} Bb1 {[%emt 0:00:02]} 1/2-1/2

[Event "Szansa Chess Open 2022"]
[Site "Warsaw"]
[Date "2022.09.18"]
[Round "9.9"]
[White "Chomczyk, Marek"]
[Black "Rak, Maciej"]
[Result "1-0"]
[ECO "B24"]
[WhiteElo "2327"]
[BlackElo "1866"]
[Annotator "ChessBase"]
[PlyCount "77"]
[EventDate "2022.09.17"]
[EventCountry "POL"]
[SourceTitle "playchess.com"]
[Source "ChessBase"]
[SourceQuality "1"]
[TimeControl "900+10"]

1. e4 {[%emt 0:00:02]} c5 {[%emt 0:00:01]} 2. Nc3 {[%emt 0:00:04]} Nc6 {[%emt 0:00:01]} 3. Bb5 {[%emt 0:00:01]} e6 {[%emt 0:01:10]} 4. Bxc6 {[%emt 0:00:03]} dxc6 {[%emt 0:00:16]} 5. f4 {[%emt 0:00:02]} Nf6 {[%emt 0:00:46]} 6. Nf3 {[%emt 0:00:08]} c4 {[%emt 0:00:36]} 7. Qe2 {[%emt 0:00:49]} b5 {[%emt 0:00:35]} 8. b3 {[%emt 0:00:21]} cxb3 {[%emt 0:00:43]} 9. axb3 {[%emt 0:00:02]} Bc5 {[%emt 0:02:03]} 10. Bb2 {[%emt 0:00:17]} Bb7 {[%emt 0:02:23]} 11. d4 {[%emt 0:00:59]} Bb6 {[%emt 0:01:21]} 12. O-O {[%emt 0:01:46]} Bxd4+ {[%emt 0:01:45]} 13. Nxd4 {[%emt 0:00:16]} Qxd4+ {[%emt 0:00:01]} 14. Kh1 {[%emt 0:00:02]} O-O {[%emt 0:02:16]} 15. Rad1 {[%emt 0:00:42]} Qb6 16. e5 {[%emt 0:00:04]} Nd5 {[%emt 0:00:21]} 17. Ne4 {[%emt 0:00:02]} Qe3 {[%emt 0:00:50]} 18. Rde1 {[%emt 0:01:04]} Qxe2 {[%emt 0:00:20]} 19. Rxe2 {[%emt 0:00:02]} a5 {[%emt 0:00:46]} 20. Rf3 {[%emt 0:00:50]} Rfc8 21. Nc5 {[%emt 0:00:24]} Ba6 {[%emt 0:01:26]} 22. h4 {[%emt 0:00:02]} a4 {[%emt 0:00:32]} 23. bxa4 {[%emt 0:00:01]} b4 {[%emt 0:00:01]} 24. Re4 {[%emt 0:00:17]} h5 {[%emt 0:00:17]} 25. f5 {[%emt 0:00:43]} exf5 {[%emt 0:00:18]} 26. Rxf5 {[%emt 0:00:02]} g6 {[%emt 0:00:08]} 27. Rg5 {[%emt 0:00:03]} Kh7 {[%emt 0:00:16]} 28. g4 {[%emt 0:00:19]} hxg4 {[%emt 0:00:22]} 29. Rexg4 {[%emt 0:00:20]} Re8 {[%emt 0:00:14]} 30. h5 {[%emt 0:00:06]} Bc8 {[%emt 0:00:02]} 31. hxg6+ {[%emt 0:00:03]} fxg6 {[%emt 0:00:02]} 32. Rh4+ {[%emt 0:00:06]} Kg7 {[%emt 0:00:05]} 33. e6+ {[%emt 0:00:09]} Nc3 {[%emt 0:00:31]} 34. Rxb4 {[%emt 0:00:14]} Kh6 {[%emt 0:00:01]} 35. Rbg4 {[%emt 0:00:04]} Nd5 {[%emt 0:00:19]} 36. Rxg6+ {[%emt 0:00:02]} Kh5 {[%emt 0:00:00]} 37. R6g5+ {[%emt 0:00:02]} Kh6 {[%emt 0:00:02]} 38. Bc1 {[%emt 0:00:02]} Rh8 {[%emt 0:00:28]} 39. Rh4# {[%emt 0:00:13]} 1-0

[Event "Szansa Chess Open 2022"]
[Site "Warsaw"]
[Date "2022.09.18"]
[Round "9.10"]
[White "Jarzebowski, Kacper"]
[Black "Niezhentsev, Kyrylo"]
[Result "0-1"]
[ECO "B50"]
[WhiteElo "2106"]
[BlackElo "2009"]
[Annotator "TA"]
[PlyCount "81"]
[EventDate "2022.09.17"]
[EventCountry "POL"]
[SourceTitle "playchess.com"]
[Source "ChessBase"]
[SourceQuality "1"]
[TimeControl "900+10"]

{[%evp 9,81,-10,-6,-7,0,-17,-10,-8,-8,-29,-32,-91,-4,-49,-20,-25,0,-24,15,12,16,13,27,14,19,0,0,-10,-9,-40,-31,-41,-34,-36,-19,-25,-23,-19,-18,-116,-129,-154,-97,-96,-96,-96,-98,-97,-98,-109,-111,-116,-106,-89,0,-73,0,-113,-110,-117,-111,-175,-172,-214,-227,-214,-90,-120,-122,-189,-193,-479,-497,-554]} 1. e4 {[%emt 0:00:01]} c5 {[%emt 0:00:00]} 2. Nf3 {[%emt 0:00:01]} d6 {[%emt 0:00:04]} 3. g3 {[%emt 0:00:01]} Nf6 {[%emt 0:00:04]} 4. Qe2 {[%emt 0:00:01]} Nc6 {[%emt 0:00:12]} 5. Bg2 {[%emt 0:00:02]} g6 {[%emt 0:00:06]} 6. O-O {[%emt 0:00:02] B50: Sicilian: 2...d6, Miscellaneous.} Bg7 {[%emt 0:00:02]} 7. c3 {[%emt 0:00:01]} (7. e5 $5 {[%cal Re5f6]} Nd5 8. exd6 $11) 7... e5 {[%emt 0:00:23]} 8. Na3 {[%emt 0:00:09] The position is equal.} O-O {[%emt 0:00:04]} 9. Nc2 {[%emt 0:00:00]} Re8 {[%emt 0:00:39] [#]} 10. a4 $146 {[%emt 0:00:12] [#]} (10. Re1 $15) ({Predecessor:} 10. d3 d5 11. Bg5 d4 12. cxd4 cxd4 13. Qd2 Qd6 14. Na3 Be6 15. Rfc1 Rac8 16. Nc4 {0-1 (41) Certic,B (2394)-Zivkovic,S (2305) Belgrade 2014}) 10... b6 {[%emt 0:00:12]} (10... Bg4 $6 11. Ne3 $11) ({Better is} 10... Nxe4 $1 $17 {And now ...d5 would win.} 11. Qxe4 Bf5) 11. Rd1 {[%emt 0:00:06]} Bb7 {[%emt 0:00:07]} (11... d5 $5 {[%cal Rd5e4]} 12. d3 d4 $15) 12. d3 {[%emt 0:00:13]} Qd7 {[%emt 0:01:05]} 13. h4 {[%emt 0:00:33]} Rad8 {[%emt 0:00:12]} 14. Bg5 {[%emt 0:00:11]} h6 {[%emt 0:00:19]} 15. Bxf6 {[%emt 0:00:10]} Bxf6 {[%emt 0:00:02]} 16. Ne3 {[%emt 0:00:01]} Ne7 {[%emt 0:00:15]} 17. Nh2 {[%emt 0:00:40]} d5 {[%emt 0:01:20]} 18. h5 {[%emt 0:00:33]} d4 {[%emt 0:01:06]} 19. Nhg4 {[%emt 0:01:06]} Bg7 {[%emt 0:00:02]} 20. cxd4 {[%emt 0:00:25]} cxd4 {[%emt 0:00:13]} 21. Nc4 {[%emt 0:00:07]} Nc6 {[%emt 0:00:31]} 22. Bh3 {[%emt 0:00:27]} Qe7 {[%emt 0:00:08]} (22... f5 23. Nh2 $14) 23. Qd2 {[%emt 0:00:24]} Kh7 {[%emt 0:00:13]} ({Resist} 23... gxh5 24. Nxh6+ Kf8 25. Nf5 $16) 24. hxg6+ {[%emt 0:00:20]} (24. Nh2 $11) 24... fxg6 $17 {[%emt 0:00:02]} 25. Kg2 {[%emt 0:00:49]} Bc8 {[%emt 0:00:12]} (25... Ba6 $142 26. b3 Rf8) 26. Rh1 {[%emt 0:00:33][%cal Og4h6]} h5 {[%emt 0:02:18]} 27. Nh2 {[%emt 0:00:18]} Bxh3+ {[%emt 0:00:03]} 28. Kxh3 {[%emt 0:00:01]} Rf8 {[%emt 0:00:55]} 29. Kg2 {[%emt 0:00:06]} Bh6 $36 {[%emt 0:00:15][%mdl 2048] Keeping White busy.} 30. Qe2 {[%emt 0:00:22][%cal Ob2b4]} Rc8 {[%emt 0:00:28]} 31. Nf3 {[%emt 0:00:14][%cal Ob2b4]} Qf6 {[%emt 0:00:33]} ({Black should play} 31... Rf6 $17 {White must now prevent ...Rcf8.} 32. Raf1 Rcf8) 32. Nh4 {[%emt 0:00:43]} (32. b4 $11) 32... Na5 {[%emt 0:00:25]} (32... Rc7 $17) 33. Ra3 {[%emt 0:03:34]} (33. Nxg6 $1 $11 Kxg6 34. Qxh5+ Kh7 35. Nxe5 Qxf2+ 36. Kh3) 33... Qe6 {[%emt 0:00:44][%cal Ra5c4]} 34. b3 {[%emt 0:01:18]} Rf6 {[%emt 0:00:49]} 35. Qd1 {[%emt 0:01:21]} (35. Ra2 $17) 35... Nc6 $19 {[%emt 0:01:45]} (35... Nxc4 36. bxc4 Rcf8 37. Ra2 $17) 36. Ra2 {[%emt 0:01:47]} Nb4 {[%emt 0:00:33]} 37. Rb2 {[%emt 0:00:25]} a6 {[%emt 0:00:15]} (37... Rcf8 $19 {and Black stays clearly on top. Hoping for ...Kg7.} 38. Kg1 Kg7) 38. Nf3 $17 {[%emt 0:00:26]} Rc5 {[%emt 0:00:28] Black is more active.} 39. Qb1 {[%emt 0:03:14]} (39. Rb1 $17 {was called for.}) 39... b5 $19 {[%emt 0:00:04]} ({Inferior is} 39... Rxf3 40. Kxf3 b5 41. axb5 (41. Kg2 $2 bxc4 42. bxc4 a5 $19) 41... axb5 42. Kg2 $11) 40. Ncd2 {[%emt 0:00:19]} (40. axb5 axb5 41. Ncxe5 Rxe5 42. Nxe5 Qxe5 43. Qd1) 40... Qf7 {[%emt 0:00:31] aiming for ...Rc3.} ({Don't blunder} 40... Rc3 $2 41. Ne1 $19) 41. axb5 {[%emt 0:00:44] Weighted Error Value: White=0.39/Black=0.20 (precise)} 0-1

[Event "Szansa Chess Open 2022"]
[Site "Warsaw"]
[Date "2022.09.18"]
[Round "9.11"]
[White "Czarnecka, Lidia"]
[Black "Alvarado, Carlos"]
[Result "1-0"]
[ECO "B15"]
[WhiteElo "1957"]
[BlackElo "2108"]
[Annotator "TA"]
[PlyCount "55"]
[EventDate "2022.09.17"]
[EventCountry "POL"]
[SourceTitle "playchess.com"]
[Source "ChessBase"]
[SourceQuality "1"]
[TimeControl "900+10"]

{[%evp 10,55,43,11,16,16,36,20,16,26,22,13,9,10,50,40,45,57,37,31,37,28,22,0,0,0,29,0,20,10,27,0,22,0,18,19,50,54,443,408,411,411,1311,1378,1371,1357,1359,861]} 1. e4 {[%emt 0:00:01]} c6 {[%emt 0:00:04]} 2. d4 {[%emt 0:00:02]} d5 {[%emt 0:00:03]} 3. Nc3 {[%emt 0:00:02]} dxe4 {[%emt 0:00:02]} 4. Nxe4 {[%emt 0:00:01]} Nf6 {[%emt 0:00:02]} 5. Nxf6+ {[%emt 0:00:05]} exf6 {[%emt 0:00:02]} 6. Be3 {[%emt 0:00:10]} Bd6 {[%emt 0:00:08] B15: Caro-Kann: 3 Nc3: 3...g6 and 3...dxe4 4 Nxe4 Nf6 5 Nxf6+ exf6.} 7. Bd3 {[%emt 0:00:05]} O-O {[%emt 0:00:04]} 8. Ne2 {[%emt 0:00:02]} Na6 {[%emt 0:00:06] The position is equal.} 9. c3 {[%emt 0:00:05][%cal Bc2c3,Bc3c4][%mdl 32] Against Nb4} Nc7 {[%emt 0:00:05]} 10. Qc2 {[%emt 0:00:06]} h6 {[%emt 0:00:03]} 11. O-O {[%emt 0:00:04]} Re8 {[%emt 0:00:02]} 12. c4 {[%emt 0:00:09]} Ne6 {[%emt 0:01:06] [#]} 13. Rfe1 $146 {[%emt 0:00:45]} ({Predecessor:} 13. Rad1 Nf8 14. Ng3 Bg4 15. Rd2 Bb4 16. h3 Bxd2 17. Qxd2 Be6 18. Bxh6 g6 19. Qc3 {0-1 (54) Saurabh,A (2072)-Kunal,M (2298) Chennai 2017}) 13... Bd7 {[%emt 0:00:21]} 14. h3 {[%emt 0:00:15]} Rc8 15. Rad1 {[%emt 0:00:35]} Bb8 {[%emt 0:00:56]} 16. Qb3 {[%emt 0:00:37]} Qc7 {[%emt 0:00:28] [#] aiming for ...Qh2+.} 17. Ng3 {[%emt 0:00:03] Active counter play!} b6 {[%emt 0:00:43]} 18. Bc2 {[%emt 0:01:11]} Nf8 {[%emt 0:00:43]} 19. Qd3 {[%emt 0:00:23]} Rcd8 {[%emt 0:01:22]} 20. Qc3 {[%emt 0:01:34]} Be6 {[%emt 0:02:45]} 21. Nf1 {[%emt 0:00:48]} f5 {[%emt 0:01:00]} 22. Bc1 {[%emt 0:00:26]} f4 {[%emt 0:04:03]} 23. b3 {[%emt 0:00:19]} g5 $2 {[%emt 0:00:18][%mdl 8192] Black cannot hold the game after this.} (23... Qc8 $14) 24. Bb2 {[%emt 0:00:09][%cal Od4d5]} f6 {[%emt 0:02:21]} 25. d5 {[%emt 0:00:17]} cxd5 {[%emt 0:00:02]} (25... Qg7 $142 26. dxe6 Rxd1) 26. Qxf6 $18 {[%emt 0:00:03] [#] White wants to mate with Qh8+. White is clearly winning.} d4 {[%emt 0:00:57]} 27. Rxd4 {[%emt 0:00:27]} Qe7 {[%emt 0:01:54] Inhibits Rd7.} 28. Rxd8 {Weighted Error Value: White=0.10 (very precise) /Black=0.42} 1-0

[Event "Szansa Chess Open 2022"]
[Site "Warsaw"]
[Date "2022.09.18"]
[Round "9.12"]
[White "Kaczmarska, Joanna"]
[Black "Lapaj, Mateusz"]
[Result "0-1"]
[ECO "A05"]
[WhiteElo "1948"]
[BlackElo "2216"]
[Annotator "TA"]
[PlyCount "84"]
[EventDate "2022.09.17"]
[EventCountry "POL"]
[SourceTitle "playchess.com"]
[Source "ChessBase"]
[SourceQuality "1"]
[TimeControl "900+10"]

{[%evp 18,84,0,0,0,-29,-22,-93,-38,-124,-106,-117,-119,-134,-131,-170,-15,-29,-18,-48,-57,-470,-464,-583,-438,-511,-501,-525,-498,-657,-666,-639,-659,-664,-653,-603,-467,-584,-513,-583,-510,-514,-504,-501,-504,-595,-582,-583,-582,-636,-626,-621,-619,-606,-586,-800,-654,-1322,-1245,-1358,-1292,-5712,-5682,-29978,-29979,-29979,-29973,-29980,-29981]} 1. Nf3 {[%emt 0:00:01]} Nf6 {[%emt 0:00:01]} 2. g3 {[%emt 0:00:01]} g6 {[%emt 0:00:02]} 3. Bg2 {[%emt 0:00:00]} Bg7 {[%emt 0:00:01]} 4. O-O {[%emt 0:00:02]} O-O {[%emt 0:00:04]} 5. d3 {[%emt 0:00:01]} d5 {[%emt 0:00:38]} 6. Nbd2 {[%emt 0:00:03]} c5 {[%emt 0:00:58]} 7. e4 {[%emt 0:00:02]} Nc6 {[%emt 0:00:11]} 8. c3 {[%emt 0:00:21]} Qc7 {[%emt 0:04:31]} 9. Qe2 {[%emt 0:01:07]} dxe4 {[%emt 0:01:04]} 10. dxe4 {[%emt 0:00:03]} e5 {[%emt 0:03:17] A08: King's Indian Attack.} 11. a4 {[%emt 0:04:32]} b6 {[%emt 0:00:11] [#]} 12. Nh4 $146 {[%emt 0:01:56] [#]} (12. Re1 $11 {remains equal.}) ({Predecessor:} 12. Re1 Rd8 13. Nf1 h6 14. N3d2 Bg4 15. f3 Be6 16. Ne3 Na5 17. Nec4 Nc6 18. Qf1 {½-½ (27) Blanco Gramajo,C (2552)-Dos Santos,M (2433) ICCF email 2011}) 12... Bb7 {[%emt 0:00:49]} (12... Na5 $1 $17) 13. f4 {[%emt 0:00:08]} (13. Re1 $15) 13... Rad8 $17 {[%emt 0:00:26]} 14. Ndf3 {[%emt 0:02:32][%cal Oa4a5]} exf4 {[%emt 0:00:56]} 15. gxf4 {[%emt 0:00:11]} Rfe8 {[%emt 0:00:46] Black is more active.} 16. e5 {[%emt 0:00:15]} Nd7 $2 {[%emt 0:00:22]} (16... Na5 $19 {White must now prevent ...Nb3.} 17. Ng5 h6 18. Bxb7 Qxb7) 17. Ng5 $11 {[%emt 0:00:30]} Nf8 {[%emt 0:00:32] Prevents e6.} 18. Ne4 {[%emt 0:02:39]} Na5 $1 {[%emt 0:00:24]} 19. Nd6 $2 {[%emt 0:00:37][%mdl 8192] This costs White the game.} ({Better is} 19. Be3 $15) 19... Qxd6 $1 $19 {[%emt 0:00:10]} 20. b4 {[%emt 0:00:58]} Nc6 {[%emt 0:00:07]} 21. bxc5 {[%emt 0:00:28]} Qxc5+ {[%emt 0:00:06]} 22. Be3 {[%emt 0:00:01]} Qe7 {[%emt 0:00:02]} 23. Qb5 {[%emt 0:00:50]} Qxh4 {[%emt 0:00:22]} 24. Bxc6 {[%emt 0:00:01]} Qg4+ {[%emt 0:00:19]} 25. Kh1 {[%emt 0:00:00]} Bxc6+ {[%emt 0:00:02]} 26. Qxc6 {[%emt 0:00:01]} Qd7 {[%emt 0:00:01]} 27. Qg2 {[%emt 0:00:14]} Qd5 {[%emt 0:00:02]} 28. Rf3 {[%emt 0:00:00]} f6 {[%emt 0:00:33]} 29. exf6 {[%emt 0:00:25]} Bxf6 {[%emt 0:00:01]} 30. f5 {[%emt 0:00:01]} Bxc3 {[%emt 0:00:42]} 31. Rg1 {[%emt 0:01:18]} Bg7 {[%emt 0:01:05]} 32. Bg5 {[%emt 0:00:15]} Rd7 {[%emt 0:00:23]} 33. f6 {[%emt 0:00:29]} Bh8 {[%emt 0:00:02]} 34. Rgf1 {[%emt 0:00:33]} Rf7 {[%emt 0:00:08]} 35. h4 {[%emt 0:00:09]} Ne6 {[%emt 0:00:15]} 36. Qe2 {[%emt 0:00:11]} Ref8 {[%emt 0:00:18]} 37. Bh6 {[%emt 0:00:06]} Nd4 {[%emt 0:00:13]} 38. Qd3 {[%emt 0:00:00]} Rd8 {[%emt 0:00:03] [#] Hoping for ...Rxf6.} 39. Rd1 {[%emt 0:00:16]} Bxf6 {[%emt 0:00:03]} 40. Rdf1 {[%emt 0:00:19]} Nxf3 {[%emt 0:00:05] Black mates.} 41. Qxd5 {[%emt 0:00:02]} Rxd5 {[%emt 0:00:01]} 42. Rxf3 {[%emt 0:00:02]} Bg7 {[%emt 0:00:08] Weighted Error Value: White=0.85/Black=0.38} 0-1